bitfinex/quotes_SOLUSD_20241111
["timestamp","ask_amount","ask_price","bid_price","bid_amount"]
[1731368658124,34.99269079,221.26,221.18,34.99269079]
[1731368658318,34.99269079,221.26,221.19,23.776884]
[1731368658909,34.99269079,221.28,221.19,23.776884]
[1731368659211,34.99269079,221.28,221.21,23.776884]
[1731368659412,34.99269079,221.3,221.21,23.776884]
[1731368659630,34.99269079,221.32,221.24,23.776884]
[1731368659927,34.99269079,221.32,221.25,34.99269079]
[1731368660146,34.99269079,221.34,221.26,23.776884]
[1731368660912,34.99269079,221.31,221.25,23.776884]
[1731368661109,35.19269067,221.43,221.23,34.99269079]
[1731368661110,34.99269079,221.35,221.28,34.99269079]
[1731368661431,34.99269079,221.37,221.29,23.776884]
[1731368661735,34.99269079,221.37,221.3,34.99269079]
[1731368662034,34.99269079,221.37,221.31,23.776884]
[1731368662331,34.99269079,221.37,221.29,23.776884]
[1731368662531,34.99269079,221.37,221.29,45.88110777]
[1731368663713,34.99269079,221.37,221.31,37.246884]
[1731368663910,34.99269079,221.39,221.32,34.99269079]
[1731368664125,34.99269079,221.39,221.34,23.776884]
[1731368664337,34.99269079,221.41,221.34,37.246884]
[1731368664627,6.1284,221.52,221.32,57.89953846]
[1731368664628,34.99269079,221.45,221.38,37.246884]
[1731368664832,34.99269079,221.43,221.38,23.776884]
[1731368665010,34.99269079,221.41,221.37,23.776884]
[1731368665211,34.99269079,221.39,221.37,23.776884]
[1731368665432,34.99269079,221.39,221.31,23.776884]
[1731368665631,34.99269079,221.35,221.31,23.776884]
[1731368665835,34.99269079,221.37,221.31,23.776884]
[1731368666047,34.99269079,221.35,221.29,13.47]
[1731368666743,34.99269079,221.43,221.22,6.4529]
[1731368666744,34.99269079,221.37,221.31,13.47]
[1731368667112,34.99269079,221.41,221.33,13.47]
[1731368667340,34.99269079,221.43,221.36,34.99269079]
[1731368667671,34.99269079,221.47,221.41,13.47]
[1731368668017,34.99269079,221.45,221.4,23.776884]
[1731368668216,34.99269079,221.41,221.32,57.89953846]
[1731368668413,34.99269079,221.39,221.33,46.6639864]
[1731368668717,34.99269079,221.37,221.33,23.776884]
[1731368668918,34.99269079,221.35,221.29,22.10422377]
[1731368669132,34.99269079,221.33,221.26,38.42287889]
[1731368669338,34.99269079,221.31,221.23,22.43449244]
[1731368669635,0.09999988,221.43,221.26,34.99269079]
[1731368669840,34.99269079,221.34,221.26,57.55146968]
[1731368670049,34.99269079,221.34,221.27,13.47]
[1731368670621,34.99269079,221.34,221.29,13.47]
[1731368670826,34.99269079,221.34,221.3,23.776884]
[1731368671019,34.99269079,221.34,221.3,37.246884]
[1731368671222,34.99269079,221.36,221.3,37.246884]
[1731368672433,34.99269079,221.34,221.3,23.776884]
[1731368672841,34.99269079,221.38,221.3,72.23957479]
[1731368673431,34.99269079,221.36,221.3,37.246884]
[1731368673732,34.99269079,221.34,221.31,13.47]
[1731368674842,34.99269079,221.36,221.32,13.47]
[1731368675023,34.99269079,221.36,221.33,23.776884]
[1731368675541,34.99269079,221.34,221.3,23.776884]
[1731368676043,34.99269079,221.34,221.29,37.246884]
[1731368676244,34.99269079,221.3,221.24,22.69092637]
[1731368676543,34.99269079,221.3,221.25,13.47]
[1731368676843,34.99269079,221.32,221.25,13.47]
[1731368677248,34.99269079,221.32,221.22,6.4529]
[1731368677249,34.99269079,221.36,221.28,13.47]
[1731368677541,34.99269079,221.36,221.27,34.99269079]
[1731368677542,34.99269079,221.36,221.29,37.246884]
[1731368678330,1.5,221.41,221.34,23.776884]
[1731368678548,1.5,221.41,221.39,34.99269079]
[1731368678858,1.5,221.41,221.4,23.776884]
[1731368679343,1.5,221.41,221.37,23.776884]
[1731368679640,1.5,221.41,221.36,34.99269079]
[1731368679849,1.5,221.41,221.35,22.143538]
[1731368680148,1.5,221.41,221.36,23.776884]
[1731368680849,1.5,221.41,221.36,58.76957479]
[1731368681443,1.5,221.41,221.38,23.776884]
[1731368682028,1.5,221.41,221.4,34.99269079]
[1731368682329,34.99269079,221.5,221.41,46.0561458]
[1731368682532,34.99269079,221.54,221.47,23.776884]
[1731368683045,34.99269079,221.56,221.49,23.776884]
[1731368683245,34.99269079,221.6,221.52,34.99269079]
[1731368683555,34.99269079,221.58,221.53,23.776884]
[1731368683851,34.99269079,221.58,221.51,23.776884]
[1731368684146,34.99269079,221.6,221.51,23.776884]
[1731368684333,34.99269079,221.6,221.44,15.2278]
[1731368684334,34.99269079,221.62,221.55,46.69601907]
[1731368684734,161.1,221.7,221.55,46.69601907]
[1731368684735,0.09999988,221.69,221.55,23.776884]
[1731368684943,34.99269079,221.61,221.55,23.776884]
[1731368685341,6.3369,221.74,221.55,23.776884]
[1731368685342,34.99269079,221.67,221.6,34.99269079]
[1731368685545,34.99269079,221.65,221.61,23.776884]
[1731368686144,34.99269079,221.65,221.59,23.776884]
[1731368686348,161.1,221.75,221.64,57.86587846]
[1731368686558,34.99269079,221.75,221.68,23.776884]
[1731368686736,161.1,221.8,221.68,23.776884]
[1731368686737,34.99269079,221.71,221.68,23.776884]
[1731368686939,34.99269079,221.69,221.62,23.776884]
[1731368688032,34.99269079,221.69,221.63,34.99269079]
[1731368688347,34.99269079,221.69,221.61,57.46077824]
[1731368688533,34.99269079,221.71,221.63,57.17089041]
[1731368688731,34.99269079,221.69,221.61,34.99269079]
[1731368688933,34.99269079,221.67,221.61,58.76957479]
[1731368689846,161.1,221.74,221.63,34.99269079]
[1731368689847,34.99269079,221.69,221.63,34.99269079]
[1731368690063,34.99269079,221.69,221.61,81.23766224]
[1731368690346,34.99269079,221.69,221.61,58.76957479]
[1731368690558,34.99269079,221.67,221.61,23.776884]
[1731368690736,34.99269079,221.65,221.61,23.776884]
[1731368690929,34.99269079,221.65,221.57,57.28362028]
[1731368691351,34.99269079,221.58,221.53,4.30739778]
[1731368691553,34.99269079,221.54,221.46,6.1193]
[1731368691849,34.99269079,221.5,221.45,22.75981957]
[1731368692057,34.99269079,221.52,221.45,22.75981957]
[1731368692426,34.99269079,221.5,221.42,22.4807941]
[1731368692754,34.99269079,221.46,221.4,22.69767338]
[1731368692937,34.99269079,221.49,221.42,22.4807941]
[1731368693848,161.1,221.58,221.43,81.28103194]
[1731368693849,34.99269079,221.51,221.43,81.28103194]
[1731368694354,34.99269079,221.55,221.47,22.62900029]
[1731368694654,34.99269079,221.53,221.48,23.776884]
[1731368694832,34.99269079,221.51,221.48,23.776884]
[1731368695036,34.99269079,221.57,221.49,34.99269079]
[1731368695229,34.99269079,221.57,221.5,23.776884]
[1731368695750,34.99269079,221.61,221.53,34.99269079]
[1731368695956,34.99269079,221.61,221.53,57.67502901]
[1731368696152,161.1,221.69,221.56,23.776884]
[1731368696153,34.99269079,221.63,221.56,23.776884]
[1731368696541,34.99269079,221.59,221.52,23.776884]
[1731368697236,34.99269079,221.55,221.47,61.92908886]
[1731368697543,34.99269079,221.53,221.47,46.40588429]
[1731368697857,161.2,221.64,221.47,46.40588429]
[1731368697858,34.99269079,221.61,221.52,23.776884]
[1731368698057,34.99269079,221.59,221.52,23.776884]
[1731368698253,34.99269079,221.57,221.5,23.776884]
[1731368698936,34.99269079,221.59,221.52,23.776884]
[1731368699550,34.99269079,221.57,221.49,22.60562351]
[1731368699756,34.99269079,221.5,221.36,37.83599239]
[1731368699960,161.1,221.53,221.36,37.83599239]
[1731368700140,34.99269079,221.49,221.42,34.99269079]
[1731368700340,34.99269079,221.51,221.44,34.99269079]
[1731368700536,34.99269079,221.53,221.44,34.99269079]
[1731368700757,34.99269079,221.49,221.4,34.99269079]
[1731368701061,34.99269079,221.49,221.37,4.30739778]
[1731368701062,34.99269079,221.51,221.42,57.47348489]
[1731368701267,34.99269079,221.53,221.46,57.00890875]
[1731368701438,34.99269079,221.55,221.46,57.00890875]
[1731368701634,34.99269079,221.53,221.44,57.00339923]
[1731368701863,34.99269079,221.49,221.42,57.47348489]
[1731368702044,161.1,221.53,221.47,34.99269079]
[1731368702256,34.99269079,221.55,221.47,57.62169108]
[1731368702439,35.09269079,221.65,221.43,34.99269079]
[1731368702440,34.99269079,221.59,221.51,34.99269079]
[1731368702641,34.99269079,221.55,221.48,57.20629885]
[1731368702852,34.99269079,221.57,221.5,34.99269079]
[1731368703162,34.99269079,221.55,221.48,57.20629885]
[1731368703364,34.99269079,221.55,221.38,0.1]
[1731368703365,34.99269079,221.53,221.46,34.99269079]
[1731368703566,34.99269079,221.51,221.44,57.00339923]
[1731368703751,161.1,221.61,221.37,17.87739778]
[1731368703752,34.99269079,221.57,221.48,34.99269079]
[1731368704057,34.99269079,221.57,221.5,34.99269079]
[1731368704368,34.99269079,221.59,221.5,57.45910264]
[1731368704750,34.99269079,221.63,221.54,34.99269079]
[1731368705060,34.99269079,221.65,221.58,34.99269079]
[1731368705260,34.99269079,221.65,221.57,23.776884]
[1731368705455,161.1,221.7,221.55,23.776884]
[1731368705456,34.99269079,221.63,221.55,23.776884]
[1731368705863,34.99269079,221.61,221.53,23.776884]
[1731368706166,34.99269079,221.63,221.55,23.776884]
[1731368706337,34.99269079,221.69,221.61,23.776884]
[1731368707578,34.99269079,221.72,221.64,57.86587846]
[1731368707744,34.99269079,221.74,221.66,34.99269079]
[1731368707950,6.59219988,221.9,221.74,46.26696909]
[1731368708152,34.99269079,221.82,221.74,81.25965988]
[1731368708465,34.99269079,221.86,221.78,57.06052791]
[1731368708843,34.99269079,221.86,221.76,57.74475019]
[1731368709150,34.99269079,221.84,221.77,23.776884]
[1731368709347,34.99269079,221.79,221.72,46.32039578]
[1731368709657,34.99269079,221.83,221.75,34.99269079]
[1731368709975,34.99269079,221.87,221.79,34.99269079]
[1731368710146,34.99269079,221.81,221.7,22.80180684]
[1731368710459,0.1,221.8,221.63,22.17819962]
[1731368710661,0.19999988,221.77,221.6,57.01468394]
[1731368710868,34.99269079,221.63,221.53,22.68233822]
[1731368711159,0.19999988,221.66,221.45,4.30739778]
[1731368711360,0.09999988,221.62,221.44,22.01070844]
[1731368711576,0.09999988,221.6,221.44,26.31810622]
[1731368711739,0.1,221.61,221.44,22.01070844]
[1731368711945,0.1,221.61,221.43,6.5464]
[1731368711946,34.99269079,221.58,221.51,34.99269079]
[1731368712141,34.99269079,221.6,221.52,22.39894588]
[1731368712342,34.99269079,221.62,221.55,34.99269079]
[1731368712564,34.99269079,221.64,221.55,34.99269079]
[1731368712962,34.99269079,221.66,221.57,34.99269079]
[1731368713653,34.99269079,221.66,221.58,23.776884]
[1731368713854,34.99269079,221.66,221.5,0.1]
[1731368713855,34.99269079,221.6,221.51,57.8933598]
[1731368714073,34.99269079,221.56,221.47,57.62169108]
[1731368714276,34.99269079,221.51,221.42,4.30739778]
[1731368714483,34.99269079,221.45,221.36,63.77308318]
[1731368714767,34.99269079,221.47,221.4,57.69036417]
[1731368715067,34.99269079,221.55,221.46,57.00890875]
[1731368715249,34.99269079,221.55,221.48,57.20629885]
[1731368715663,34.99269079,221.55,221.46,57.00890875]
[1731368716058,34.99269079,221.52,221.44,57.00339923]
[1731368716252,34.99269079,221.56,221.48,34.99269079]
[1731368717069,34.99269079,221.58,221.5,34.99269079]
[1731368717372,34.99269079,221.58,221.51,23.776884]
[1731368718152,34.99269079,221.62,221.54,57.20746214]
[1731368718378,34.99269079,221.6,221.52,61.69903445]
[1731368718569,34.99269079,221.59,221.53,13.47]
[1731368718753,34.99269079,221.59,221.52,39.30008857]
[1731368718948,34.99269079,221.57,221.49,16.507]
[1731368719181,34.99269079,221.59,221.5,81.23598664]
[1731368719864,34.99269079,221.57,221.5,81.23598664]
[1731368720061,34.99269079,221.59,221.5,81.23598664]
[1731368720484,34.99269079,221.63,221.55,23.776884]
[1731368720661,34.99269079,221.61,221.55,23.776884]
[1731368720865,34.99269079,221.59,221.51,23.776884]
[1731368721069,34.99269079,221.59,221.52,34.99269079]
[1731368721364,34.99269079,221.62,221.54,34.99269079]
[1731368721562,161.1,221.71,221.61,34.99269079]
[1731368721771,34.99269079,221.71,221.63,57.17089041]
[1731368721969,34.99269079,221.71,221.64,23.776884]
[1731368722276,34.99269079,221.73,221.66,23.776884]
[1731368722571,34.99269079,221.69,221.63,23.776884]
[1731368722964,34.99269079,221.67,221.62,4.93428666]
[1731368723160,34.99269079,221.67,221.6,23.776884]
[1731368723361,34.99269079,221.63,221.55,34.99269079]
[1731368723568,34.99269079,221.61,221.53,57.67502901]
[1731368723771,34.99269079,221.61,221.54,27.14905801]
[1731368724163,34.99269079,221.65,221.57,57.28362028]
[1731368724362,34.99269079,221.73,221.64,34.99269079]
[1731368724579,34.99269079,221.65,221.58,5.28095333]
[1731368724876,161.1,221.71,221.59,23.776884]
[1731368725084,161.1,221.81,221.61,0.1]
[1731368725263,161.1,221.8,221.63,0.1]
[1731368725574,161.1,221.8,221.64,5.28095333]
[1731368726077,34.99269079,221.72,221.64,63.14683179]
[1731368726285,34.99269079,221.72,221.65,23.776884]
[1731368726571,34.99269079,221.76,221.68,46.08803512]
[1731368726772,196.09269079,221.78,221.72,23.776884]
[1731368726974,34.99269079,221.78,221.72,23.776884]
[1731368727365,34.99269079,221.78,221.72,29.05783733]
[1731368727956,34.99269079,221.78,221.73,5.28095333]
[1731368728369,34.99269079,221.82,221.75,22.84291718]
[1731368728567,0.1,221.94,221.73,5.28095333]
[1731368728568,34.99269079,221.86,221.77,22.56059886]
[1731368728774,34.99269079,221.86,221.79,22.47836239]
[1731368728977,34.99269079,221.86,221.78,5.28095333]
[1731368729167,34.99269079,221.8,221.72,23.776884]
[1731368729363,34.99269079,221.74,221.71,5.28095333]
[1731368729674,34.99269079,221.72,221.66,22.55442438]
[1731368729877,34.99269079,221.72,221.67,27.46616976]
[1731368730267,34.99269079,221.74,221.67,27.46616976]
[1731368730578,34.99269079,221.74,221.68,23.776884]
[1731368730880,34.99269079,221.74,221.7,23.776884]
[1731368731078,34.99269079,221.76,221.7,29.05783733]
[1731368731254,34.99269079,221.8,221.73,34.99269079]
[1731368731459,34.99269079,221.82,221.74,29.05783733]
[1731368732467,34.99269079,221.8,221.74,5.28095333]
[1731368732679,34.99269079,221.87,221.67,57.17790722]
[1731368732680,34.99269079,221.76,221.67,57.17790722]
[1731368732860,34.99269079,221.71,221.66,22.55442438]
[1731368733059,34.99269079,221.71,221.64,5.28095333]
[1731368733060,34.99269079,221.69,221.64,5.28095333]
[1731368733259,34.99269079,221.67,221.64,5.28095333]
[1731368733468,0.1,221.47,221.28,16.2305565]
[1731368733680,0.1,221.47,221.26,22.55877889]
[1731368733681,34.99269079,221.36,221.27,22.98896975]
[1731368733872,34.99269079,221.32,221.22,57.64631641]
[1731368734076,34.99269079,221.32,221.24,57.68361716]
[1731368734467,34.99269079,221.32,221.22,57.64631641]
[1731368734781,34.99269079,221.32,221.24,57.68361716]
[1731368735784,34.99269079,221.34,221.26,57.55146968]
[1731368736164,34.99269079,221.36,221.28,34.99269079]
[1731368736372,34.99269079,221.36,221.28,57.44557482]
[1731368736970,34.99269079,221.37,221.3,34.99269079]
[1731368737166,34.99269079,221.33,221.26,34.99269079]
[1731368737479,34.99269079,221.35,221.27,34.99269079]
[1731368737698,34.99269079,221.37,221.3,57.55384586]
[1731368737890,34.99269079,221.38,221.31,34.99269079]
[1731368738366,34.99269079,221.39,221.31,34.99269079]
[1731368738567,161.1,221.38,221.31,34.99269079]
[1731368738768,161.1,221.37,221.31,34.99269079]
[1731368738970,161.1,221.37,221.32,34.99269079]
[1731368739276,161.1,221.37,221.31,23.776884]
[1731368739478,196.09269079,221.37,221.29,34.99269079]
[1731368739667,161.1,221.37,221.3,58.76957479]
[1731368739868,161.1,221.37,221.31,34.99269079]
[1731368740070,161.1,221.37,221.3,57.55384586]
[1731368740274,34.99269079,221.36,221.29,34.99269079]
[1731368740686,196.09269079,221.37,221.3,23.776884]
[1731368740886,161.1,221.37,221.3,58.76957479]
[1731368741083,161.1,221.42,221.36,34.99269079]
[1731368741294,196.09269079,221.41,221.33,34.99269079]
[1731368741473,34.99269079,221.37,221.3,57.55384586]
[1731368741672,34.99269079,221.38,221.31,58.76957479]
[1731368741885,34.99269079,221.38,221.31,81.52201086]
[1731368742086,34.99269079,221.38,221.31,23.776884]
[1731368742395,34.99269079,221.39,221.32,34.99269079]
[1731368743083,196.09269079,221.4,221.32,34.99269079]
[1731368743392,161.1,221.4,221.34,34.99269079]
[1731368743690,161.1,221.4,221.33,22.8871024]
[1731368743691,161.1,221.4,221.33,57.87979319]
[1731368743993,34.99269079,221.39,221.31,34.99269079]
[1731368744180,196.09269079,221.39,221.31,34.99269079]
[1731368744384,34.99269079,221.39,221.32,58.76957479]
[1731368745081,34.99269079,221.4,221.32,58.76957479]
[1731368745585,34.99269079,221.41,221.33,34.99269079]
[1731368745785,196.09269079,221.42,221.35,34.99269079]
[1731368745998,161.1,221.41,221.35,34.99269079]
[1731368746184,196.09269079,221.41,221.33,34.99269079]
[1731368746496,34.99269079,221.39,221.32,23.776884]
[1731368746674,196.09269079,221.41,221.33,57.87979319]
[1731368746874,34.99269079,221.38,221.3,57.55384586]
[1731368747093,161.1,221.38,221.3,57.55384586]
[1731368747295,161.1,221.38,221.34,34.99269079]
[1731368747496,161.1,221.38,221.32,34.99269079]
[1731368747681,196.09269079,221.38,221.31,34.99269079]
[1731368747882,196.09269079,221.38,221.3,22.56115507]
[1731368747883,161.1,221.38,221.3,57.55384586]
[1731368748194,34.99269079,221.35,221.28,57.44557482]
[1731368748403,161.1,221.38,221.32,34.99269079]
[1731368748576,161.1,221.38,221.33,34.99269079]
[1731368748895,34.99269079,221.42,221.35,34.99269079]
[1731368749194,34.99269079,221.38,221.31,34.99269079]
[1731368749395,34.99269079,221.37,221.3,57.55384586]
[1731368749699,34.99269079,221.35,221.29,22.10422377]
[1731368750282,196.09269079,221.36,221.29,57.09691456]
[1731368750483,34.99269079,221.34,221.27,57.98166054]
[1731368750996,161.1,221.35,221.29,34.99269079]
[1731368751172,196.09269079,221.35,221.28,57.44557482]
[1731368751697,161.1,221.35,221.29,57.09691456]
[1731368752486,161.1,221.35,221.3,34.99269079]
[1731368752892,161.1,221.35,221.31,34.99269079]
[1731368753200,161.1,221.35,221.34,57.37237563]
[1731368753494,161.1,221.42,221.34,57.37237563]
[1731368753697,161.1,221.41,221.35,34.99269079]
[1731368753894,161.1,221.41,221.34,22.37968484]
[1731368753895,161.1,221.41,221.36,34.99269079]
[1731368754396,161.1,221.41,221.38,34.99269079]
[1731368754701,161.1,221.41,221.39,34.99269079]
[1731368754998,161.1,221.45,221.39,34.99269079]
[1731368755701,161.1,221.44,221.38,34.99269079]
[1731368756083,161.1,221.44,221.39,34.99269079]
[1731368756893,161.1,221.44,221.35,23.776884]
[1731368757081,34.99269079,221.44,221.36,34.99269079]
[1731368757475,161.19999988,221.51,221.32,22.90684767]
[1731368757681,34.99269079,221.39,221.32,34.99269079]
[1731368758300,34.99269079,221.38,221.31,34.99269079]
[1731368758599,34.99269079,221.39,221.32,34.99269079]
[1731368758783,34.99269079,221.38,221.3,57.55384586]
[1731368758980,34.99269079,221.38,221.3,34.99269079]
[1731368759499,34.99269079,221.4,221.32,34.99269079]
[1731368760784,34.99269079,221.42,221.34,34.99269079]
[1731368760987,34.99269079,221.4,221.32,34.99269079]
[1731368761199,34.99269079,221.38,221.3,57.55384586]
[1731368761794,34.99269079,221.4,221.32,34.99269079]
[1731368762383,161.1,221.39,221.36,34.99269079]
[1731368762809,34.99269079,221.46,221.38,34.99269079]
[1731368763099,34.99269079,221.4,221.32,57.89953846]
[1731368763302,161.1,221.39,221.32,34.99269079]
[1731368763505,161.1,221.39,221.33,34.99269079]
[1731368764697,161.1,221.39,221.38,57.45865433]
[1731368764892,161.1,221.45,221.39,22.30955257]
[1731368765106,161.1,221.45,221.33,13.51]
[1731368765107,161.1,221.47,221.42,34.99269079]
[1731368765318,161.1,221.47,221.41,34.99269079]
[1731368766195,161.1,221.48,221.45,34.99269079]
[1731368766508,34.99269079,221.46,221.3,22.56115507]
[1731368766697,6.3075,221.5,221.32,34.99269079]
[1731368766698,161.29999988,221.45,221.32,34.99269079]
[1731368766902,161.29999988,221.45,221.3,22.56115507]
[1731368767205,161.29999988,221.45,221.3,27.53292844]
[1731368767206,161.1,221.45,221.3,27.53292844]
[1731368767510,161.1,221.45,221.31,41.23420944]
[1731368768011,161.1,221.45,221.39,22.30955257]
[1731368768182,161.1,221.49,221.44,34.99269079]
[1731368768383,161.1,221.48,221.47,34.99269079]
[1731368768604,161.1,221.48,221.39,22.30955257]
[1731368768809,161.1,221.47,221.39,22.30955257]
[1731368769104,161.1,221.56,221.42,23.776884]
[1731368769402,6.0386,221.57,221.44,23.776884]
[1731368769403,161.1,221.55,221.44,23.776884]
[1731368769607,161.1,221.55,221.45,4.97177337]
[1731368769989,161.1,221.55,221.51,34.99269079]
[1731368770196,161.1,221.57,221.52,34.99269079]
[1731368770590,161.1,221.57,221.51,34.99269079]
[1731368770793,161.1,221.57,221.55,34.99269079]
[1731368771199,41.13129079,221.63,221.56,34.99269079]
[1731368771398,161.1,221.62,221.56,34.99269079]
[1731368771801,161.1,221.62,221.46,22.01621796]
[1731368771986,196.09269079,221.66,221.59,34.99269079]
[1731368772202,196.09269079,221.65,221.58,34.99269079]
[1731368772387,161.1,221.65,221.59,34.99269079]
[1731368772589,161.1,221.64,221.62,34.99269079]
[1731368772789,56.13399045,221.68,221.63,34.99269079]
[1731368773087,56.13399045,221.75,221.68,22.31115112]
[1731368773288,91.12668124,221.81,221.74,34.99269079]
[1731368773492,56.13399045,221.8,221.65,22.55673703]
[1731368773703,56.13399045,221.79,221.74,34.99269079]
[1731368773892,56.13399045,221.78,221.72,34.99269079]
[1731368774091,56.13399045,221.78,221.73,34.99269079]
[1731368774290,34.99269079,221.8,221.73,34.99269079]
[1731368774587,161.1,221.79,221.76,34.99269079]
[1731368774792,161.1,221.79,221.75,34.99269079]
[1731368774999,161.1,221.79,221.73,34.99269079]
[1731368775308,161.1,221.85,221.78,34.99269079]
[1731368775603,161.1,221.85,221.69,0.1]
[1731368775604,196.09269079,221.88,221.75,23.776884]
[1731368775785,34.99269079,221.9,221.83,34.99269079]
[1731368776710,34.99269079,221.88,221.81,34.99269079]
[1731368777093,34.99269079,221.89,221.82,34.99269079]
[1731368777584,34.99269079,221.88,221.81,34.99269079]
[1731368777787,161.1,221.91,221.76,4.97177337]
[1731368777788,34.99269079,221.85,221.78,34.99269079]
[1731368777988,6.0386,221.93,221.73,56.99892685]
[1731368777989,33.99269079,221.8,221.73,56.99892685]
[1731368778205,161.1,221.86,221.73,0.1]
[1731368778409,161.1,221.92,221.75,23.776884]
[1731368778585,161.1,221.91,221.76,51.50071677]
[1731368778784,0.1,221.95,221.76,51.50071677]
[1731368778785,161.1,221.92,221.77,23.776884]
[1731368779004,161.1,221.96,221.78,4.97177337]
[1731368779209,161.1,221.96,221.79,23.776884]
[1731368779417,34.99269079,221.93,221.86,34.99269079]
[1731368779590,161.1,221.95,221.85,34.99269079]
[1731368779790,34.99269079,221.92,221.84,57.60092743]
[1731368780234,34.99269079,221.92,221.85,34.99269079]
[1731368780515,34.99269079,221.93,221.86,34.99269079]
[1731368780698,34.99269079,221.91,221.84,34.99269079]
[1731368780904,161.1,221.94,221.9,34.99269079]
[1731368781095,0.19999988,222.02,221.85,4.97177337]
[1731368781410,0.19999988,221.98,221.84,22.60823664]
[1731368781597,0.19999988,221.98,221.8,22.89846517]
[1731368781792,161.1,221.97,221.82,22.59793191]
[1731368781998,161.1,221.97,221.84,22.60823664]
[1731368782201,34.99269079,221.91,221.84,57.60092743]
[1731368782407,34.99269079,221.88,221.84,22.60823664]
[1731368782599,34.99269079,221.88,221.82,22.59793191]
[1731368782809,34.99269079,221.87,221.79,57.47105318]
[1731368783122,34.99269079,221.85,221.78,62.03230128]
[1731368783299,161.1,221.86,221.82,34.99269079]
[1731368783501,161.1,221.86,221.8,34.99269079]
[1731368784108,161.1,221.86,221.82,34.99269079]
[1731368784419,34.99269079,221.88,221.81,39.96446416]
[1731368784715,4.5007,222.19,221.81,39.96446416]
[1731368784716,153.98,221.87,221.82,57.5906227]
[1731368784898,146.86,221.87,221.82,22.59793191]
[1731368785216,146.86,221.87,221.86,34.99269079]
[1731368785394,146.86,221.92,221.86,34.99269079]
[1731368785706,146.86,221.91,221.86,34.99269079]
[1731368785911,146.86,221.91,221.88,34.99269079]
[1731368786427,146.86,221.91,221.86,22.84573744]
[1731368786721,146.86,221.92,221.89,34.99269079]
[1731368786898,146.86,221.92,221.85,13.51]
[1731368786899,146.86,222.05,221.91,48.50269079]
[1731368787229,146.86,222.04,221.91,18.48177337]
[1731368787422,146.86,222.04,221.92,42.25865737]
[1731368787901,146.86,222.04,221.94,22.84368942]
[1731368788111,181.85269079,222.04,221.97,34.99269079]
[1731368788299,146.86,222.03,221.99,34.99269079]
[1731368788499,146.86,222.05,222.02,57.70125427]
[1731368788716,146.86,222.09,222.04,34.99269079]
[1731368788899,146.86,222.1,222.04,34.99269079]
[1731368789100,146.86,222.11,222.06,57.44007765]
[1731368789419,181.85269079,222.16,222.05,22.65089737]
[1731368789608,181.85269079,222.15,222.08,34.99269079]
[1731368789803,146.86,222.15,222.08,57.70310136]
[1731368790111,34.99269079,222.15,222.08,57.70310136]
[1731368790315,34.99269079,222.17,222.1,34.99269079]
[1731368790501,34.99269079,222.15,222.07,34.99269079]
[1731368790899,34.99269079,222.14,222.07,34.99269079]
[1731368791718,34.99269079,222.1,222.04,27.17142777]
[1731368791924,34.99269079,222.05,221.94,57.83638021]
[1731368792100,34.99269079,222.01,221.94,57.83638021]
[1731368792523,146.86,222.07,221.94,22.84368942]
[1731368792736,34.99269079,221.98,221.92,22.84704348]
[1731368792899,34.99269079,221.93,221.86,22.84573744]
[1731368793098,0.19999988,222.04,221.84,6.0926]
[1731368793099,34.99269079,221.95,221.89,22.46049292]
[1731368793310,34.99269079,221.96,221.89,57.45318371]
[1731368793522,34.99269079,221.95,221.88,22.98577266]
[1731368793815,34.99269079,221.95,221.88,57.97846345]
[1731368794122,34.99269079,221.95,221.88,22.98577266]
[1731368794809,34.99269079,221.92,221.85,22.00396903]
[1731368794996,34.99269079,221.92,221.84,71.11092743]
[1731368795195,34.99269079,221.92,221.84,57.60092743]
[1731368795523,34.99269079,221.88,221.81,22.93925589]
[1731368795819,34.99269079,221.9,221.82,57.5906227]
[1731368796397,34.99269079,221.94,221.86,57.83842823]
[1731368796596,34.99269079,221.96,221.89,22.46049292]
[1731368796816,34.99269079,222.0,221.93,22.72391159]
[1731368797119,6.5661,222.07,221.93,22.72391159]
[1731368797120,34.99269079,222.02,221.94,34.99269079]
[1731368797314,34.99269079,222.01,221.94,34.99269079]
[1731368797718,146.86,222.03,221.92,34.99269079]
[1731368797719,34.99269079,221.99,221.92,34.99269079]
[1731368798322,146.86,222.03,221.9,22.06243789]
[1731368798323,34.99269079,221.96,221.9,22.06243789]
[1731368798518,34.99269079,221.95,221.89,22.46049292]
[1731368798701,34.99269079,221.98,221.91,34.99269079]